Cogmind - Beta 12 X1 @@@ ROGUE MODE // 2022.08.30 @ 18:05:37 Player: Cyurio Result: Destroyed by X-57 Shotgunner with High-powered Shotgun Performance ------------- Evolutions (2) 1000 Regions Visited (7) 1400 Robots Destroyed (60) 300 Value Destroyed (1613) 1613 Prototype IDs (28) 560 Alien Tech Used (0) 0 Bonus (698) 698 TOTAL SCORE: 5571 Bonus ------- High Alert Combat Kills 36 Follower Combat Kills 162 Entered Garrisons 200 Aligned with FarCom 300 Cogmind --------- Core Integrity 0/550 Matter 138/300 Energy 89/100 System Corruption 0% Temperature Cool (0) Movement Core (50) Location -8/Garrison Parts ------- > --- POWER (1) -------- (None) > --- PROPULSION (3) --- (None) > --- UTILITY (4) ------ (None) > --- WEAPON (3) ------- Chainsword > --- INVENTORY (5) ---- Light Treads Light Treads Aluminum Leg Light Assault Rifle Mining Claw Peak State ------------ > --- POWER ------------ Light Angular Momentum Engine > --- PROPULSION ------- Armored Treads Armored Treads Armored Treads > --- UTILITY ---------- Advanced Heat Sink High-capacity Storage Unit Compact Battery Structural Scanner > --- WEAPON ----------- YOLO Cannon Assault Cannon > --- INVENTORY -------- Light Ion Engine Light Treads Light Treads Armored Treads Armored Treads Aluminum Leg Carbon-fiber Leg Improved Titanium Leg Wheel Small Storage Unit Trap Scanner Light Assault Rifle Light Assault Rifle Light Assault Rifle Light Assault Rifle Light Assault Rifle Minigun Light Cannon Mining Claw Chainsword [Rating: 50] Favorites ----------- Power Light Nuclear Core Engine Light Ion Engine Power Core Light Nuclear Core Propulsion Armored Treads Treads Armored Treads Leg Aluminum Leg Wheel Wheel Utility High-capacity Storage Unit Device Structural Scanner Storage High-capacity Storage Unit Protection Light Armor Plating Weapon Light Assault Rifle Energy Gun Medium Laser Energy Cannon YOLO Cannon Ballistic Gun Light Assault Rifle Ballistic Cannon Light Cannon Launcher Rocket Launcher Slashing Weapon Mining Claw Build | -11 -10 -10 -10 -9 -8 -8 -8 ------- Run | Scr Mat Min Exi Min Mat Sto Gar Slots Evolved 4 | . . . . . 4 . . Power . | . . . . . . . . Propulsion 1 | . . . . . 1 . . Utility 2 | . . . . . 2 . . Weapon 1 | . . . . . 1 . . Parts Attached 50 | . 12 2 1 6 17 6 6 Power 6 | . 1 . . . 2 2 1 Engine 4 | . . . . . 2 1 1 Core 2 | . 1 . . . . 1 . Reactor . | . . . . . . . . Propulsion 11 | . 2 . . . 6 . 3 Treads 8 | . . . . . 6 . 2 Leg . | . . . . . . . . Wheel 3 | . 2 . . . . . 1 Hover . | . . . . . . . . Flight . | . . . . . . . . Utility 11 | . 5 . . 1 4 1 . Device 7 | . 3 . . 1 3 . . Storage 2 | . 1 . . . . 1 . Processor . | . . . . . . . . Hackware . | . . . . . . . . Protection 2 | . 1 . . . 1 . . Artifact . | . . . . . . . . Weapon 22 | . 4 2 1 5 5 3 2 Energy Gun 1 | . 1 . . . . . . Energy Cannon 2 | . . . . . 1 1 . Ballistic Gun 11 | . 1 1 1 3 2 2 1 Ballistic Cannon 3 | . 1 . . . 2 . . Launcher 2 | . . 1 . 1 . . . Special Weapon . | . . . . . . . . Impact Weapon . | . . . . . . . . Slashing Weapon 3 | . 1 . . 1 . . 1 Piercing Weapon . | . . . . . . . . Special Melee Weapon . | . . . . . . . . Unidentified Prototypes . | . . . . . . . . Corrupted Parts 2 | . . . . 2 . . . System Corruption 16 | . . . . 16 . . . Parts Lost 24 | . 4 . . 3 7 2 8 Power 5 | . 1 . . . 2 1 1 Propulsion 10 | . 1 . . 1 2 1 5 Utility 4 | . 1 . . 1 2 . . Weapon 5 | . 1 . . 1 1 . 2 Highest Loss Streak 8 | . 2 . . 3 3 1 8 To Critical Strikes 1 | . . . . . . . 1 Average Slot Usage (%) 91 | . 97 100 100 73 88 86 86 Engine 5 | . 10 . . . 6 4 . Core 5 | . 3 14 14 14 2 4 8 Treads 10 | . . . . . 22 23 25 Leg 6 | . 21 . . . . . . Wheel 8 | . 6 28 28 14 2 . . Device 13 | . 8 14 14 1 19 19 18 Storage 13 | . 14 14 14 14 9 16 18 Protection 1 | . 3 . . . 2 . . Energy Gun 1 | . 6 . . . . . . Energy Cannon 2 | . . . . . 3 8 8 Ballistic Gun 13 | . 13 14 25 27 13 1 3 Ballistic Cannon 5 | . 7 1 . . 6 9 4 Launcher 1 | . . 12 2 . . . . Naked Turns 2 | . . . . . . . 2 Heaviest Build 75 | 13 51 51 51 52 70 75 71 Greatest Support 60 | 20 20 20 20 10 60 60 60 Greatest Overweight (x) 5 | . 2 2 2 5 5 1 4 Average Overweight (x) 1 | . . 2 2 4 1 . 1 Largest Inventory Capacity 20 | . 20 20 20 20 20 20 20 Average Capacity 17 | . 10 20 20 20 20 20 19 Most Carried 20 | . 8 12 14 19 18 20 18 Average Carried 13 | . 7 10 12 16 15 18 17 Final Capacity 20 | 8 20 20 20 20 20 20 5 Final Carried 19 | 6 8 12 14 19 18 19 5 Class Distribution -------------------- 64% | Mutant 28% | Skirmisher 6% | Scavenger-Mutant Dominant Class ---------------- Mutant | -10/Materials Mutant | -10/Mines Scavenger-Mutant | -10/Exiles Mutant | -9/Mines Skirmisher | -8/Materials Mutant | -8/Storage Mutant | -8/Garrison Resources | -11 -10 -10 -10 -9 -8 -8 -8 ----------- Run | Scr Mat Min Exi Min Mat Sto Gar Matter Collected 1024 | 200 190 68 . 41 420 105 . Remotely . | . . . . . . . . Salvage Created 1593 | . 599 258 . 41 366 329 . Parts 96 | . 26 29 . 9 14 18 . Haulers Intercepted 1 | . 1 . . . . . . Recyclers Shooed . | . . . . . . . . Parts Field Recycled . | . . . . . . . . Retrieved Matter . | . . . . . . . . Parts Self-Destructed . | . . . . . . . . Prevented . | . . . . . . . . Kills | -11 -10 -10 -10 -9 -8 -8 -8 ------- Run | Scr Mat Min Exi Min Mat Sto Gar Combat Hostiles Destroyed 50 | . 13 13 . 3 9 12 . Guns 13 | . 7 . . 3 3 . . Cannons 17 | . 6 . . . 4 7 . AOE 19 | . . 13 . . 2 4 . Classes Destroyed 10 | . 4 2 . . 1 3 . Worker 3 | . . 2 . . . 1 . Builder 2 | . 1 . . . . 1 . Hauler 1 | . 1 . . . . . . Recycler 4 | . 1 2 . . 1 . . Swarmer 18 | . . 11 . 3 1 3 . Grunt 26 | . 13 2 . . 7 4 . Brawler 1 | . . . . . . 1 . Duelist 1 | . . . . . . 1 . Sentry 3 | . . . . . . 3 . Heavy 1 | . . . . . 1 . . Best Kill Streak 9 | . 3 9 . 3 3 7 . Combat Bots Only 6 | . 3 6 . 3 3 5 . Max Kills in Single Turn 3 | . 1 3 . 1 2 3 . Gunslinging . | . . . . . . . . Exploded 3 | . . 3 . . 1 2 . Melee . | . . . . . . . . Uniques/NPCs Destroyed . | . . . . . . . . Combat | -11 -10 -10 -10 -9 -8 -8 -8 -------- Run | Scr Mat Min Exi Min Mat Sto Gar Damage Taken 3438 | . 634 181 . 229 1243 684 467 Core 650 | . 95 56 . 59 200 98 142 Absorbed by Shields . | . . . . . . . . Core Remaining (%) 58 | 100 . . . 16 . . . Volleys Fired 159 | . 69 12 . 6 38 32 2 Largest 3 | . 2 2 . 2 3 3 2 Hottest 144 | . 70 53 . 40 120 144 125 Shots Fired 270 | . 116 13 . 12 87 40 2 Gun 170 | . 93 1 . 12 57 6 1 Cannon 88 | . 23 . . . 30 34 1 Launcher 12 | . . 12 . . . . . Special . | . . . . . . . . Kinetic 215 | . 88 1 . 12 79 34 1 Thermal 43 | . 28 . . . 8 6 1 Explosive 12 | . . 12 . . . . . Electromagnetic . | . . . . . . . . Robot Hit Streak 13 | . 13 6 . 3 10 11 . Robot Miss Streak 3 | . 3 1 . 2 3 2 2 Penetration Max . | . . . . . . . . Secondary Targets 5 | . 3 . . 2 . . . Max Gunslinging Chain 1 | . 1 . . 1 . . . Shots Hit Robots 176 | . 85 3 . 7 52 29 . Core Hits 102 | . 30 22 . 5 26 19 . Critical Kills 1 | . . . . . . 1 . Critical Parts Destroyed 1 | . . . . . 1 . . Critical Strikes 4 | . 1 . . . 2 1 . Burn 1 | . 1 . . . . . . Meltdown 1 | . . . . . . 1 . Destroy 1 | . . . . . 1 . . Blast 1 | . . . . . 1 . . Melee Attacks 3 | . 3 . . . . . . Impact . | . . . . . . . . Slashing 3 | . 3 . . . . . . Piercing . | . . . . . . . . Sneak Attacks . | . . . . . . . . Combat Hostiles . | . . . . . . . . Follow-up Attacks . | . . . . . . . . Damage Inflicted 5219 | . 953 956 . 51 1626 1633 . Guns 1024 | . 618 8 . 51 309 38 . Cannons 2079 | . 335 . . . 851 893 . Explosions 2092 | . . 948 . . 442 702 . Melee . | . . . . . . . . Ramming 24 | . . . . . 24 . . Kinetic 1800 | . 702 8 . 51 509 530 . Thermal 2447 | . 251 . . . 1093 1103 . Explosive 948 | . . 948 . . . . . Electromagnetic . | . . . . . . . . Impact . | . . . . . . . . Slashing . | . . . . . . . . Piercing . | . . . . . . . . Highest Corruption 16 | . . . . 16 . . . Average Corruption 10 | . . . . 10 . . . Corruption Purged . | . . . . . . . . Corruption Blocked . | . . . . . . . . Effects 1 | . . . . 1 . . . Data Loss (minor) 1 | . . . . 1 . . . Overload Shots . | . . . . . . . . Overflow Damage 124 | . . 13 . . 8 73 30 Projectiles 13 | . . . . . 5 8 . Explosions 111 | . . 13 . . 3 65 30 Melee . | . . . . . . . . Knockbacks 14 | . 8 . . . . 6 . Impact . | . . . . . . . . Kinetic 11 | . 7 . . . . 4 . Secondary 3 | . 1 . . . . 2 . Self-Inflicted Damage 234 | . . 87 . . . . 147 Shots 4 | . . 2 . . . . 2 Rammed 3 | . . . . . 3 . . Targets Rammed 5 | . 1 . . . 4 . . Kicked 1 | . 1 . . . . . . Crushed 1 | . . . . . 1 . . Highest Temperature 399 | . 399 3 . 8 142 6 8 Average Temperature 126 | . 173 3 . 4 61 4 8 Received Heat Transfer 1068 | . 348 18 . . 324 342 36 Effects 3 | . 3 . . . . . . Shutdowns 1 | . 1 . . . . . . Interference 2 | . 2 . . . . . . Siege Activations . | . . . . . . . . Robots Corrupted . | . . . . . . . . Combat Hostiles . | . . . . . . . . Parts Fried . | . . . . . . . . Impact Corruptions . | . . . . . . . . Robots Melted 1 | . . . . . . 1 . Combat Hostiles 1 | . . . . . . 1 . Parts Melted 8 | . 3 . . . . 5 . Heat Transferred 2974 | . 814 . . . 960 1200 . Parts Sabotaged . | . . . . . . . . Parts Stolen . | . . . . . . . . Parts Stripped . | . . . . . . . . Power Chain Reactions . | . . . . . . . . Missiles Intercepted . | . . . . . . . . Alert | -11 -10 -10 -10 -9 -8 -8 -8 ------- Run | Scr Mat Min Exi Min Mat Sto Gar Peak Influence 595 | . 227 595 . 148 222 415 186 Initial 159 | . . 31 . . 57 29 159 Average 137 | . 84 339 . 123 121 168 156 Maximum Alert Level 2 | . 1 2 . . 1 2 . Low Security (%) 82 | . 93 36 . 100 85 62 100 Level 1 12 | . 6 7 . . 14 35 . Level 2 5 | . . 56 . . . 1 . Level 3 . | . . . . . . . . Level 4 . | . . . . . . . . Level 5 . | . . . . . . . . High Security . | . . . . . . . . Max Security . | . . . . . . . . Squads Dispatched 8 | . 2 . . . 2 4 . Investigation 1 | . 1 . . . . . . Extermination . | . . . . . . . . Reinforcement 4 | . 1 . . . 2 1 . Assault . | . . . . . . . . Garrison 3 | . . . . . . 3 . Intercept . | . . . . . . . . Searches Triggered . | . . . . . . . . Construction Impeded . | . . . . . . . . Haulers Reinforced . | . . . . . . . . Active Scanning Responses . | . . . . . . . . Cargo Convoy Interrupts . | . . . . . . . . Stealth | -11 -10 -10 -10 -9 -8 -8 -8 --------- Run | Scr Mat Min Exi Min Mat Sto Gar Distress Signals 2 | . 1 . . . 1 . . Communications Jammed . | . . . . . . . . Distress Signals . | . . . . . . . . Times Spotted 73 | . 24 11 . 3 20 11 4 Peak Tracking Total 5 | . 5 3 . 3 4 3 4 Tactical Retreats 5 | . . . . . 5 . . Traps | -11 -10 -10 -10 -9 -8 -8 -8 ------- Run | Scr Mat Min Exi Min Mat Sto Gar Traps Triggered 1 | . . . . 1 . . . Indirectly . | . . . . . . . . Trap Hack Attempts . | . . . . . . . . Triggered . | . . . . . . . . Disarmed . | . . . . . . . . Reprogrammed . | . . . . . . . . Reused . | . . . . . . . . Traps Extracted . | . . . . . . . . Installed . | . . . . . . . . Triggered . | . . . . . . . . Machines | -11 -10 -10 -10 -9 -8 -8 -8 ---------- Run | Scr Mat Min Exi Min Mat Sto Gar Machines Disabled 3 | . . . . . . 3 . Max in Single Turn 2 | . . . . . . 2 . Machines Sabotaged . | . . . . . . . . Garrisons Compromised . | . . . . . . . . Overloaded Fab Kills . | . . . . . . . . Hacking | -11 -10 -10 -10 -9 -8 -8 -8 --------- Run | Scr Mat Min Exi Min Mat Sto Gar Machines Accessed 10 | . 6 . 1 1 . 2 . Terminals 5 | . 4 . . . . 1 . Fabricators . | . . . . . . . . Repair Stations . | . . . . . . . . Recycling Units 2 | . 2 . . . . . . Scanalyzers . | . . . . . . . . Garrison Access 1 | . . . . . . 1 . Total Hacks 23 | . 18 . 1 1 . 3 . Successful 16 | . 12 . 1 1 . 2 . Failed 7 | . 6 . . . . 1 . Catastrophic . | . . . . . . . . Database Lockouts . | . . . . . . . . Manual 15 | . 14 . 1 . . . . Terminals 13 | . 12 . . . . 1 . Fabricators . | . . . . . . . . Repair Stations . | . . . . . . . . Recycling Units 6 | . 6 . . . . . . Scanalyzers . | . . . . . . . . Garrison Access 2 | . . . . . . 2 . Terminal Hacks 5 | . 2 . 1 1 . 1 . Prototype ID Bank 3 | . 2 . . . . 1 . Open Door 1 | . . . . 1 . . . EX-Prototype ID Bank 1 | . . . 1 . . . . Fabricator Hacks . | . . . . . . . . Repair Station Hacks . | . . . . . . . . Recycling Unit Hacks . | . . . . . . . . Scanalyzer . | . . . . . . . . Garrison Access Hacks 1 | . . . . . . 1 . Unlock Access 1 | . . . . . . 1 . Unauthorized Hacks 10 | . 10 . . . . . . Terminals 6 | . 6 . . . . . . Track 1 | . 1 . . . . . . Botnet 4 | . 4 . . . . . . Operators 1 | . 1 . . . . . . Fabricators . | . . . . . . . . Repair Stations . | . . . . . . . . Recycling Units 4 | . 4 . . . . . . Monitor 1 | . 1 . . . . . . Reject 2 | . 2 . . . . . . Mask 1 | . 1 . . . . . . Scanalyzers . | . . . . . . . . Garrison Access . | . . . . . . . . Data Cores Recovered . | . . . . . . . . Used . | . . . . . . . . Hacking Detections 6 | . 4 . . . . 2 . Full Trace Events 3 | . 3 . . . . . . Feedback Events . | . . . . . . . . Feedback Blocked . | . . . . . . . . Robot Schematics Acquired . | . . . . . . . . Robots Built . | . . . . . . . . Authchips . | . . . . . . . . Time . | . . . . . . . . Total Robot Build Rating . | . . . . . . . . Part Schematics Acquired . | . . . . . . . . Parts Built . | . . . . . . . . Authchips . | . . . . . . . . Time . | . . . . . . . . Total Part Build Rating . | . . . . . . . . Parts Repaired . | . . . . . . . . Time . | . . . . . . . . Parts Recycled . | . . . . . . . . Recycled Matter . | . . . . . . . . Retrieved Matter . | . . . . . . . . Retrieved Components . | . . . . . . . . Parts Scanalyzed . | . . . . . . . . Part Schematics Acquired . | . . . . . . . . Parts Damaged . | . . . . . . . . Bothacking | -11 -10 -10 -10 -9 -8 -8 -8 ------------ Run | Scr Mat Min Exi Min Mat Sto Gar Used RIF Installer . | . . . . . . . . Robots Hacked . | . . . . . . . . Non-combat . | . . . . . . . . Combat . | . . . . . . . . Robot Hacks Applied . | . . . . . . . . Relay Couplers Released . | . . . . . . . . Fabnet Peak Effective % . | . . . . . . . . Robots Rewired . | . . . . . . . . Allies Hacked . | . . . . . . . . Hacks Repelled . | . . . . . . . . Allies | -11 -10 -10 -10 -9 -8 -8 -8 -------- Run | Scr Mat Min Exi Min Mat Sto Gar Total Allies 2 | . . . . 2 . . . Largest Group 2 | . . . . 2 2 . . Highest-Rated Group 42 | . . . . 42 42 . . Highest-Rated Ally 31 | . . . . 31 31 . . Total Orders . | . . . . . . . . Ally Attacks 28 | . . . . 11 17 . . Total Damage 465 | . . . . 233 232 . . Kills 6 | . . . . 3 3 . . Allies Corrupted . | . . . . . . . . Allies Melted . | . . . . . . . . Intel | -11 -10 -10 -10 -9 -8 -8 -8 ------- Run | Scr Mat Min Exi Min Mat Sto Gar Robot Analysis Total . | . . . . . . . . Derelict Logs Recovered 2 | . . 1 . 1 . . . Drone Launches . | . . . . . . . . Drone Recoveries . | . . . . . . . . Exploration | -11 -10 -10 -10 -9 -8 -8 -8 ------------- Run | Scr Mat Min Exi Min Mat Sto Gar Turns Passed 3228 | . 981 259 238 264 874 464 148 Spaces Moved 1621 | 1 596 200 215 161 295 99 54 Core 4 | . . . . . . . 4 Treads 427 | . . . . . 280 99 48 Legs 426 | 1 425 . . . . . . Wheels 764 | . 171 200 215 161 15 . 2 Hover . | . . . . . . . . Flight . | . . . . . . . . Fastest Speed 50 | 120 95 110 110 140 155 170 50 Average Speed 149 | 120 116 110 110 140 227 242 231 Slowest Speed 250 | 120 120 110 110 155 250 250 250 Overloaded Moves . | . . . . . . . . Propulsion Burnouts . | . . . . . . . . Robots Hopped . | . . . . . . . . Cave-ins Triggered . | . . . . . . . . Exploration Rate (%) 33 | 2 72 40 61 41 24 13 11 Regions Visited 7 Branch Regions 4 Pre-discovered Areas 1 | . . 1 . . . . . Known Exits Taken 2 | . . . . 1 . 1 . Unknown Exits Taken 5 | 1 1 1 1 . 1 . . Scrap Searched . | . . . . . . . . Spaces Dug 1 | . 1 . . . . . . Terrain Destroyed 239 | . 1 94 . . 61 41 42 Melee 1 | . 1 . . . . . . Projectile 8 | . . . . . 2 5 1 AOE 230 | . . 94 . . 59 36 41 Terrain Rammed . | . . . . . . . . Walls Destroyed . | . . . . . . . . Machines Disabled . | . . . . . . . . Actions | -11 -10 -10 -10 -9 -8 -8 -8 --------- Run | Scr Mat Min Exi Min Mat Sto Gar Total 2158 | . 769 225 216 187 417 276 68 Wait 286 | . 77 9 . 11 57 131 1 Move 1615 | . 595 199 214 160 294 99 54 Hop . | . . . . . . . . Pick Up 22 | . 6 3 1 4 5 3 . Fast Attach 12 | . 4 . . 1 4 2 1 Attach 19 | . 2 . . 1 9 3 4 Detach 3 | . . . . . 2 1 . Swap 19 | . 6 2 1 4 4 1 1 Drop 10 | . 6 . . . . 4 . Fire 159 | . 69 12 . 6 38 32 2 Melee 3 | . 3 . . . . . . Ram . | . . . . . . . . Kick 1 | . 1 . . . . . . Crush 4 | . . . . . 4 . . Escape Stasis . | . . . . . . . . Rewire 5 | . . . . . . . 5 Trap . | . . . . . . . . Miscellaneous . | . . . . . . . . Route ------- -11/Scrapyard -10/Materials (discovered 3 exits: [*Mat x2] / [*Min]) -10/Mines -10/Exiles (discovered 2 exits: *Min x2) -9/Mines -8/Materials -8/Storage -8/Garrison History --------- Turn | Location | Event 1 | -11/Scrapyard | Discovered new exit (range 0) 1 | -11/Scrapyard | Entered Materials 309 | -10/Materials | Build established: Mutant 489 | -10/Materials | Discovered new exit (range 13) 547 | -10/Materials | Discovered new exit (range 6) 663 | -10/Materials | Discovered new exit (range 8) 982 | -10/Materials | Entered Mines 1077 | -10/Mines | Core integrity fell below 50% 1225 | -10/Mines | Learned location of Zion (-6) 1236 | -10/Mines | Deemed a non-threat by the Exiles lab entrance 1237 | -10/Mines | Discovered new exit (range 5) 1241 | -10/Mines | Entered Exiles 1256 | -10/Exiles | Discovered new exit (range 15) 1269 | -10/Exiles | Met 8R-AWN 1288 | -10/Exiles | Met EX-HEX 1319 | -10/Exiles | Met EX-BIN 1338 | -10/Exiles | Aligned with FarCom system 1339 | -10/Exiles | Given EX-Vault access code 1364 | -10/Exiles | Opened EX-Vault 1371 | -10/Exiles | Found YOLO Cannon 1394 | -10/Exiles | Warned to stay clear of 0b10 Research branches 1428 | -10/Exiles | Met EX-DEC 1467 | -10/Exiles | Discovered new exit (range 10) 1479 | -10/Exiles | Left Exiles lab with YOLO Cannon 1479 | -10/Exiles | Entered Mines 1483 | -9/Mines | Met a Derelict bent on vengeance 1514 | -9/Mines | Lost 3 parts (1n1u1w) 1676 | -9/Mines | Identified exit to Materials 1719 | -9/Mines | Met a Derelict who couldn't figure out how to use a Trap Extractor 1722 | -9/Mines | Core integrity fell below 20% 1723 | -9/Mines | System corruption reached 10% 1743 | -9/Mines | Entered Materials 1743 | -8/Materials | Accompanied by 2 allies 1743 | -8/Materials | Evolved 4 slots: Propulsion x1, Utility x2, Weapon x1 1748 | -8/Materials | Led the pair of lost Derelicts to an unsafe place 2004 | -8/Materials | Lost 3 parts (1p1n1u) 2022 | -8/Materials | Build established: Skirmisher 2086 | -8/Materials | Lost 3 parts (1n1u1w) 2278 | -8/Materials | Discovered new exit (range 8) 2617 | -8/Materials | Entered Storage 2650 | -8/Storage | Garrison activated, responded to threat 2827 | -8/Storage | Build established: Mutant 2914 | -8/Storage | Core integrity fell below 50% 3081 | -8/Storage | Identified exit to Garrison 3081 | -8/Storage | Entered Garrison 3217 | -8/Garrison | Core integrity fell below 20% 3225 | -8/Garrison | Released all parts (5) 3229 | -8/Garrison | Destroyed by X-57 Shotgunner with High-powered Shotgun Last Messages --------------- 03093_ D-53 Grenadier is unpowered. 03094_ Attempting to rewire D-53 Grenadier. 03094_ D-53 Grenadier is unpowered. 03214_ Critical hit (Destroy). 03214_ Arm. Treads destroyed. 03216_ YOLO Cannon suddenly explodes. 03216_ Arm. Treads destroyed. 03216_ Minigun destroyed. 03216_ Core damaged (-121). 03216_ Arm. Treads destroyed. 03216_ Destroyed Arm. Treads. 03216_ Lgt. Nuclear Core destroyed. 03216_ Destroyed Lgt. Nuclear Core. 03225_ Wheel destroyed. 03225_ Released Lgt. Ion Engine. 03225_ Released Com. Battery. 03225_ Released Structural Scanner. 03225_ Released Hcp. Storage Unit. 03225_ Released Adv. Heat Sink. 03227_ Acquired Chainsword. Map ----- +----------------------------------------------------+ | ??????????????????????? ???????????????????????? | | ??????????????????????# ??????###??????????????? | | ?????????????????????? ?????? #?????????????? | | ?????????????????????? ?????? #?????????????? | | ?????????????????????? ??????# #?????????????? | | ??????????????????????# #??????# #?????????????? | | ??????????????????????# #??????# #?????????????? | | ??????????????????????# #??????# #?????????????? | | ??????????????????????# #??????# #?????????????? | | ??????????????????????# #??????# #?????????????? | | ??????????????????????# #??????# #?????????????? | | ??????????????????????# #??????# #?????????????? | | ??????????????????????# ######## #?????????????? | | ??????????????????????# ##### #???????? | | ??????????????????????# #???????? | | ??????????????????????# ######### #######???????? | | ??????????????????????# #???????# #?????????????? | | ??????????????????????# #???????# #?????????????? | | ??????????????????????# #???????# #?????????????? | | ??????????????????????# ##??????# #?????????????? | | ????????????????????### ;##??#### #?????????????? | | ????????????????????# ; ; ##?#!!# #?????????????? | | ????????????????????# ; ; #?# #?????????????? | | ????????????????????# ![ #?#!!# #?????????????? | | ???????????????????## =!! #?#### #?#######?????? | | ???????????????????# [!*!@ #????# ### ######? | | ???????????????????# !=! #????# #? | | ???????????????????## ;x; #????# #? | | ????????????????????# ;Y; ##????############# #? | | ????????????????????###Y;##??????x??????????# #? | | ??????????????????????# + ??????????????????#####? | | ??????????????????????# ##???????????????????????? | | ?????????????????????? ????????????????????????? | | ?????????????????????? ????????????????????????? | | ?????????????????????# # ????????????????????????? | | ?????????????????????# ? ????????????????????????? | | ?????????????????????# ?#????????????????????????? | | ????????????????????? ??????????????????????????? | | ????????????????????? ??????????????????????????? | | ????????????????????? ??????????????????????????? | | ?????????????????????##??????????????????????????? | | ?????????????????????????????????????????????????? | | ?????????????????????????????????????????????????? | | ?????????????????????????????????????????????????? | | ?????????????????????????????????????????????????? | | ?????????????????????????????????????????????????? | | ?????????????????????????????????????????????????? | | ?????????????????????????????????????????????????? | | | | | +----------------------------------------------------+ Best States ------------- Heat Dissipation 50 Energy Generation 18 Energy Capacity 360 Matter Stores 300 Matter Capacity 300 Sight Range 16 Terrain Scan Density 10 Armor Coverage 150 Evasion (%) 55 Recoil Reduction 3 Trap Extractor Capacity 6 Item Schematics ----------------- None Robot Schematics ------------------ None Fabricated ------------ Nothing Alien Tech Used ----------------- None Achievements -------------- None Challenges ------------ None Game ------ Seed CouplerBeamBlade Manual? 0 Play Time 00:27:08 Cumulative 86.3 hours Start 2022.08.27 @ 11:52:32 End 2022.08.30 @ 18:05:37 Sessions 3 Manual Loads 0 Difficulty Rogue Special Mode None Game No. 123 Rogue 123 Adventurer 0 Explorer 0 Win Type - Total 1 Types 1/0/0/0/0/0/0/0/0 Lore% 45 Gallery% 48 Achievement% 41 Wizard Run 0 Options --------- ASCII 0 Keyboard 1 Movement Vi Keybinds 1 Fullscreen 1 Font 24/Smallcaps Map View 76x50 Tactical HUD 1 Map Filters NONE Filters NONE Steam 1 RUN: 50c2f02b-acf9-4218-af86-dab5bac33a54